Cogmind - Beta 16.1 @@@ ROGUE MODE // 2026.03.14 @ 18:51:36 Player: ae Result: Escaped! Performance ------------- Evolutions (9) 4500 Regions Visited (22) 4400 Robots Destroyed (117) 585 Value Destroyed (3603) 3603 Prototype IDs (42) 840 Alien Tech Used (1) 200 Bonus (8660) 8660 TOTAL SCORE: 22788 Bonus ------- Follower Combat Kills 298 Aligned with FarCom 300 Met Warlord at Base 500 MAIN.C Attacked Warlord 500 Warlord Defense Kills 248 Met Warlord at Research 2000 Invited to Help at Command 2000 Win 3000 Friendly Fire -186 Cogmind --------- Core Integrity 1589/1600 Matter 25/300 Energy 199/200 System Corruption 5% Temperature Cool (9) Movement Flying (39) Location To Epsilon Eridani Parts ------- > --- POWER (2) -------- Light Angular Momentum Engine Micro Antimatter Reactor > --- PROPULSION (7) --- Flying Fortress v7 Q-thruster Impulse Thruster Array > --- UTILITY (14) ----- Advanced Power Amplifier Structural Scanner Machine Analyzer Long-range Sensor Array Advanced Signal Interpreter Advanced Transmission Jammer Advanced Reaction Control System Improved Cloaking Device Improved Medium Armor Plating Hacking Suite Improved Hacking Suite Advanced Hacking Suite Improved System Shield > --- WEAPON (2) ------- Enhanced Hardcell Cannon Micro-nuke Launcher > --- INVENTORY (5) ---- Nova Cannon Enhanced Nova Cannon Advanced Datajack Force Lance Peak State ------------ > --- POWER ------------ Micro Antimatter Reactor Light Quantum Reactor > --- PROPULSION ------- Flying Fortress v7 Q-thruster Impulse Thruster Array > --- UTILITY ---------- Advanced Power Amplifier Structural Scanner Machine Analyzer Long-range Sensor Array Advanced Signal Interpreter Advanced Transmission Jammer Advanced Reaction Control System Improved Cloaking Device Improved Medium Armor Plating Advanced Thermal Shield Hacking Suite Improved Hacking Suite Improved Hacking Suite Improved System Shield > --- WEAPON ----------- Enhanced Nova Cannon Enhanced Hardcell Cannon > --- INVENTORY -------- Dimensional Node Initializer Nova Cannon Micro-nuke Launcher Advanced Datajack Force Lance [Rating: 168] Favorites ----------- Power Deuterium Engine Engine Deuterium Engine Power Core Neutrino Core Reactor Light Quantum Reactor Propulsion Advanced Treads Treads Advanced Treads Wheel Compact Wheel Flight Unit Flying Fortress v7 Utility Huge Storage Unit Device Structural Scanner Storage Huge Storage Unit Processor Advanced Signal Interpreter Hackware Improved System Shield Protection Hardened Light Armor Plating Weapon Gauss Rifle Energy Cannon Matter Neutralizer Ballistic Gun Gauss Rifle Ballistic Cannon Enhanced Hardcell Cannon Launcher Advanced EMP Blaster Special Weapon RU-N14's Throwing Claymores v3 Slashing Weapon Power Sword Piercing Weapon Vortex Lance Special Melee Weapon Advanced Datajack Build | -11 -10 -10 -9 -9 -9 -8 -8 -8 -8 -8 -6 -6 -6 -5 -5 -5 -5 -4 -4 -3 -2 -1 ------- Run | Yrd Mat Min Mat Min Exi Min Mat Sto Rec Scr Fac Was Fac Fac Upp Upp War Pro Fac Res Res Acc Slots Evolved 18 | . . . 2 . . . 2 . . . 4 . . 2 . . . . 2 2 2 2 Power 1 | . . . . . . . . . . . . . . . . . . . 1 . . . Propulsion 5 | . . . 1 . . . 1 . . . 2 . . . . . . . . . . 1 Utility 12 | . . . 1 . . . 1 . . . 2 . . 2 . . . . 1 2 2 1 Weapon . | . . . . . . . . . . . . . . . . . . . . . . . Parts Attached 121 | 7 8 2 16 . . . 9 13 . 1 . 8 4 3 3 1 2 4 11 8 16 5 Power 15 | 1 . 1 4 . . . . 1 . . . . . 1 . . . . 1 1 4 1 Engine 8 | 1 . 1 4 . . . . 1 . . . . . . . . . . . . . 1 Core 2 | . . . . . . . . . . . . . . 1 . . . . 1 . . . Reactor 5 | . . . . . . . . . . . . . . . . . . . . 1 4 . Propulsion 24 | 2 2 1 3 . . . 3 5 . . . 3 . 1 . . . . 1 2 . 1 Treads 14 | 2 1 . 3 . . . 3 5 . . . . . . . . . . . . . . Leg . | . . . . . . . . . . . . . . . . . . . . . . . Wheel 2 | . 1 1 . . . . . . . . . . . . . . . . . . . . Hover . | . . . . . . . . . . . . . . . . . . . . . . . Flight 8 | . . . . . . . . . . . . 3 . 1 . . . . 1 2 . 1 Utility 46 | 2 2 . 5 . . . 2 1 . . . 4 3 1 3 . . 3 7 4 7 2 Device 22 | 1 . . 1 . . . 1 . . . . 3 . . 3 . . 2 5 1 5 . Storage 3 | 1 2 . . . . . . . . . . . . . . . . . . . . . Processor 7 | . . . . . . . . . . . . . 1 1 . . . 1 2 1 1 . Hackware 5 | . . . . . . . . . . . . . 1 . . . . . . 1 1 2 Protection 9 | . . . 4 . . . 1 1 . . . 1 1 . . . . . . 1 . . Artifact . | . . . . . . . . . . . . . . . . . . . . . . . Weapon 36 | 2 4 . 4 . . . 4 6 . 1 . 1 1 . . 1 2 1 2 1 5 1 Energy Gun . | . . . . . . . . . . . . . . . . . . . . . . . Energy Cannon 5 | . 1 . . . . . . . . . . . . . . 1 . . 1 1 . 1 Ballistic Gun 14 | 2 2 . 2 . . . 3 3 . . . 1 . . . . . . 1 . . . Ballistic Cannon 4 | . . . 2 . . . . . . . . . . . . . . . . . 2 . Launcher 6 | . . . . . . . 1 2 . 1 . . . . . . . 1 . . 1 . Special Weapon 1 | . . . . . . . . . . . . . . . . . 1 . . . . . Impact Weapon . | . . . . . . . . . . . . . . . . . . . . . . . Slashing Weapon 4 | . 1 . . . . . . 1 . . . . 1 . . . . . . . 1 . Piercing Weapon 1 | . . . . . . . . . . . . . . . . . 1 . . . . . Special Melee Weapon 1 | . . . . . . . . . . . . . . . . . . . . . 1 . Unidentified Prototypes 9 | . . . . . . . 2 1 . . . 1 . . . . 2 . . 1 1 1 Parts Lost 20 | . . 1 9 . . . . 1 . . . . . . . . 4 . . 1 2 2 Power 5 | . . 1 2 . . . . . . . . . . . . . . . . . 1 1 Propulsion 4 | . . . 3 . . . . . . . . . . . . . 1 . . . . . Utility 8 | . . . 2 . . . . 1 . . . . . . . . 3 . . . 1 1 Weapon 3 | . . . 2 . . . . . . . . . . . . . . . . 1 . . Highest Loss Streak 6 | . . 1 6 . . . . 1 . . . . . . . . 4 . . 1 1 1 To Critical Strikes . | . . . . . . . . . . . . . . . . . . . . . . . Average Backups 14 | 4 8 16 21 25 23 22 21 21 22 22 22 7 5 5 4 5 4 4 5 5 4 4 Power 1 | . 1 . 3 3 2 2 2 2 2 2 2 1 1 1 1 1 1 1 1 1 . . Propulsion 3 | 2 3 7 8 8 6 7 4 5 5 5 5 . . . 1 1 1 . . . 1 . Utility 3 | . 2 5 6 8 7 6 5 4 5 6 6 2 2 2 1 2 . . . . . . Weapon 5 | . 1 3 3 5 7 7 9 9 9 9 9 3 1 1 1 1 2 3 3 2 2 3 Tool/Special . | . . . . . . . . . . . . . . . . . . . . . . . Unused Backups 39 | . 3 . 1 1 5 . 2 7 3 . . 8 3 1 . . . . 1 2 . 2 Power 8 | . . . 1 . 1 . . 1 1 . . 1 1 . . . . . 1 1 . . Propulsion 12 | . 2 . . 1 2 . 2 2 1 . . 2 . . . . . . . . . . Utility 7 | . . . . . 1 . . 1 1 . . 2 1 1 . . . . . . . . Weapon 12 | . 1 . . . 1 . . 3 . . . 3 1 . . . . . . 1 . 2 Tool/Special . | . . . . . . . . . . . . . . . . . . . . . . . Average Slot Usage (%) 86 | . 100 100 98 100 77 77 93 98 90 89 66 67 72 64 68 70 72 66 82 83 80 82 Engine 6 | . 14 14 11 11 11 11 9 9 9 9 6 6 6 . . . . . . . . . Core 1 | . . . . . . . . . . . . . . 4 5 5 5 5 9 8 1 . Reactor 1 | . . . . . . . . . . . . . . . . . . . . . 6 7 Treads 20 | . 26 15 24 33 33 33 34 36 36 36 26 4 . . . . . . . . . . Flight 4 | . . . . . . . . . . . . 12 20 14 11 11 10 11 14 12 8 12 Device 11 | . 14 14 10 . . . . . . . . 13 11 5 9 11 14 16 32 35 37 26 Storage 6 | . 14 14 11 11 11 11 9 9 9 9 6 1 . . . . . . . . . . Processor 2 | . . . . . . . . . . . . . 1 8 11 11 10 7 6 4 4 8 Hackware 2 | . . . . . . . . . . . . . 3 5 5 5 5 5 5 6 8 16 Protection 13 | . . . 10 22 22 22 25 25 18 18 13 15 15 11 11 11 10 5 1 3 4 4 Energy Cannon 1 | . . . 4 . . . . . . . . . . . . 3 5 5 4 4 . 2 Ballistic Gun 11 | . 27 28 15 . . . 14 16 18 17 13 13 10 5 5 1 . . . . . . Peak Build Rating 168 | 9 10 11 17 17 15 15 30 41 41 41 41 66 76 89 94 97 105 101 126 139 158 168 Average Rating 65 | 6 9 10 13 17 13 15 25 35 41 40 41 60 70 83 92 96 100 90 122 135 153 163 On Entrance 56 | . 9 10 11 17 17 15 15 30 41 41 41 41 66 76 89 94 97 79 101 125 139 153 Avg Prop Armor Cover (%) 14 | . 12 12 19 . . . . . . . . . . . . . . . . 1 . 2 Naked Turns . | . . . . . . . . . . . . . . . . . . . . . . . Heaviest Build 117 | 12 88 88 101 101 93 93 104 117 117 117 117 117 49 52 57 63 63 55 61 59 63 70 Greatest Support 86 | 40 40 16 60 60 60 60 84 86 86 86 86 86 61 63 63 63 63 56 63 66 66 74 Greatest Overweight (x) 5 | . 5 5 5 1 1 1 1 1 1 1 1 1 . . . . . . . 1 . 1 Average Overweight (x) . | . . 5 3 1 1 1 1 1 1 1 1 . . . . . . . . . . . Largest Inventory Capacity 25 | 8 25 25 25 25 25 25 25 25 25 25 25 25 5 5 5 5 5 5 5 5 5 5 Average Capacity 16 | 7 14 25 25 25 25 25 25 25 25 25 25 7 5 5 5 5 5 5 5 5 5 5 Most Carried 25 | 8 13 19 25 25 25 25 25 25 25 25 25 25 5 5 5 5 5 5 5 5 5 5 Average Carried 16 | 4 8 17 21 24 24 25 24 24 25 25 25 7 4 4 4 5 4 4 4 4 4 4 Final Capacity 25 | 8 25 25 25 25 25 25 25 25 25 25 25 5 5 5 5 5 5 5 5 5 5 5 Final Carried 25 | 8 13 19 25 25 25 25 25 25 25 25 25 5 5 5 5 5 5 5 5 5 5 4 Class Distribution -------------------- 57% | Mutant 13% | Hacker-Ninja 11% | Scavenger-Mutant 7% | Infiltrator-Mutant Dominant Class ---------------- Mutant | -10/Materials Mutant | -10/Mines Mutant | -9/Materials Scavenger-Mutant | -9/Mines Scavenger-Mutant | -9/Exiles Scavenger-Mutant | -8/Mines Scavenger-Mutant | -8/Materials Mutant | -8/Storage Mutant | -8/Recycling Mutant | -8/Scraptown Mutant | -6/Factory Mutant | -6/Waste Mutant | -6/Factory Scout | -5/Factory Mutant | -5/Upper Caves Infiltrator-Mutant | -5/Upper Caves Infiltrator-Mutant | -5/Warlord Infiltrator-Mutant | -4/Proximity Caves Infiltrator-Mutant | -4/Factory Hacker-Ninja | -3/Research Hacker-Ninja | -2/Research Hacker-Scout | -1/Access Resources | -11 -10 -10 -9 -9 -9 -8 -8 -8 -8 -8 -6 -6 -6 -5 -5 -5 -5 -4 -4 -3 -2 -1 ----------- Run | Yrd Mat Min Mat Min Exi Min Mat Sto Rec Scr Fac Was Fac Fac Upp Upp War Pro Fac Res Res Acc Matter Collected 3978 | 322 394 97 416 . 73 . 145 845 197 20 . 160 266 30 20 . 70 34 222 144 454 69 Remotely . | . . . . . . . . . . . . . . . . . . . . . . . Salvage Created 4270 | 163 405 97 500 . . . 145 1573 358 . . . 35 . . . 139 16 292 106 258 183 Parts 232 | 11 20 8 23 . . . 5 90 26 . . . . . . . 4 2 15 1 11 16 Haulers Intercepted 8 | . 1 . . . . . 1 3 . . . . . . . . . . 1 1 1 . Recyclers Shooed 1 | . . 1 . . . . . . . . . . . . . . . . . . . . Parts Field Recycled . | . . . . . . . . . . . . . . . . . . . . . . . Retrieved Matter . | . . . . . . . . . . . . . . . . . . . . . . . Parts Self-Destructed 3 | . . . . . . . . . . . . . . . 1 . . 2 . . . . Prevented 2 | . . . . . . . . . . . . . . . 2 . . . . . . . Parts Restored . | . . . . . . . . . . . . . . . . . . . . . . . Kills | -11 -10 -10 -9 -9 -9 -8 -8 -8 -8 -8 -6 -6 -6 -5 -5 -5 -5 -4 -4 -3 -2 -1 ------- Run | Yrd Mat Min Mat Min Exi Min Mat Sto Rec Scr Fac Was Fac Fac Upp Upp War Pro Fac Res Res Acc Combat Hostiles Destroyed 76 | . 9 3 10 . . . 1 25 7 . . . . . . . 2 5 6 . 3 5 Melee 1 | . . . . . . . . . . . . . . . . . . . 1 . . . Guns 37 | . 9 3 4 . . . 1 13 7 . . . . . . . . . . . . . Cannons 14 | . . . 6 . . . . . . . . . . . . . 1 1 2 . 2 2 AOE 23 | . . . . . . . . 12 . . . . . . . . . 4 3 . 1 3 Classes Destroyed 19 | 3 4 . 3 . . . . 4 1 . . . . . . . . 1 . . 2 1 Worker 10 | 2 . . . . . . . 6 . . . . . . . . . . . . . 2 Builder 3 | . . . . . . . . 2 . . . . . . . . . . 1 . . . Tunneler 2 | 2 . . . . . . . . . . . . . . . . . . . . . . Hauler 8 | . 1 . . . . . 1 3 . . . . . . . . . . 1 1 1 . Recycler 3 | 1 . 1 . . . . 1 . . . . . . . . . . . . . . . Mechanic 2 | . . . . . . . . 1 . . . . . . . . . . . . . 1 Operator 4 | . . . . . . . . 3 . . . . . . . . . . . . 1 . Drone 1 | . . . . . . . . . . . . . . . . . . 1 . . . . Watcher 8 | . 1 . 1 . . . . 2 . . . . 1 . . . . . 1 . 1 1 Swarmer 23 | . 3 3 . . . . . 7 . . . . . . . . . 4 5 . . 1 Cutter 4 | . . . . . . . . . . . . . . . . . . . . . . 4 Grunt 23 | . 6 . 5 . . . 1 9 1 . . . . . . . . . . . 1 . Brawler 4 | . . . 1 . . . . 2 . . . . . . . . 1 . . . . . Duelist 5 | . . . 2 . . . . 2 . . . . . . . . 1 . . . . . Sentry 10 | . . . 2 . . . . 4 4 . . . . . . . . . . . . . Demolisher 1 | . . . . . . . . . . . . . . . . . . . . . 1 . Hunter 1 | . . . . . . . . 1 . . . . . . . . . . . . . . Programmer 3 | . . . . . . . . . 2 . . . . . . . . . 1 . . . Striker 1 | . . . . . . . . . . . . . . . . . . . . . 1 . Thug 1 | . . . . . . . . 1 . . . . . . . . . . . . . . Best Kill Streak 9 | 3 5 3 3 . . . 2 9 2 . . . 1 . . . 2 4 5 1 2 6 Combat Bots Only 6 | . 5 3 3 . . . 1 6 2 . . . . . . . 2 4 5 . 1 3 Max Kills in Single Turn 4 | 1 2 1 1 . . . 2 3 1 . . . 1 . . . 1 3 3 1 2 4 Gunslinging 1 | . 1 . . . . . . . . . . . . . . . . . . . . . Exploded 3 | . . . . . . . . 3 . . . . . . . . . 3 3 . 1 2 Melee 1 | . . . . . . . . . . . . . . . . . . . 1 . . . Uniques/NPCs Destroyed . | . . . . . . . . . . . . . . . . . . . . . . . Combat | -11 -10 -10 -9 -9 -9 -8 -8 -8 -8 -8 -6 -6 -6 -5 -5 -5 -5 -4 -4 -3 -2 -1 -------- Run | Yrd Mat Min Mat Min Exi Min Mat Sto Rec Scr Fac Was Fac Fac Upp Upp War Pro Fac Res Res Acc Hostile Shots Fired 373 | . 54 11 76 . . . 4 64 28 . . . 1 . 2 . 56 10 34 . 18 15 Missed 115 | . 15 4 15 . . . 2 14 8 . . . . . 2 . 20 4 17 . 7 7 Hits 258 | . 39 7 61 . . . 2 50 20 . . . 1 . . . 36 6 17 . 11 8 Melee 26 | . . . 14 . . . . . . . . . . . . . 6 . . . 3 3 Projectile 232 | . 39 7 47 . . . 2 50 20 . . . 1 . . . 30 6 17 . 8 5 AOE 2 | . . . . . . . . . . . . . . . . . . . . . . 2 Critical Strikes 8 | . . . 2 . . . . 3 3 . . . . . . . . . . . . . Damage Taken 4503 | . 423 53 980 . . . 34 760 298 . . . 19 . . . 880 112 239 . 354 351 Core 340 | . 50 20 112 . . . . 53 46 . . . . . . . 12 . 36 . . 11 Absorbed by Shields . | . . . . . . . . . . . . . . . . . . . . . . . Redirected to Shielding 28 | . . . 17 . . . . 11 . . . . . . . . . . . . . . Ignored by Resistances 15 | . . . . . . . . . . . . . . . . . . . . . 15 . Regen/Repaired (Parts) 99 | . . . . . . . . 46 . . . 20 . 7 . . . . . . 26 . Core Remaining (%) 91 | 100 . 72 . . . 72 . . . 82 . . 100 . . . . 98 96 100 100 99 Volleys Fired 393 | 13 52 8 41 . . . 8 86 23 . . . 2 . . . 12 8 33 24 46 37 Largest 2 | 2 2 2 2 . . . 2 2 2 . . . 2 . . . 1 1 1 1 1 2 Hottest 178 | 40 60 40 80 . . . 56 56 56 . . . 56 . . . 105 105 105 113 113 178 Shots Fired 605 | 26 101 15 82 . . . 16 152 46 . . . 4 . . . 12 9 33 24 46 39 Gun 404 | 26 98 15 50 . . . 16 137 46 . . . 4 . . . . . 12 . . . Cannon 177 | . 3 . 32 . . . . . . . . . . . . . 12 7 20 24 44 35 Launcher 24 | . . . . . . . . 15 . . . . . . . . . 2 1 . 2 4 Special . | . . . . . . . . . . . . . . . . . . . . . . . Kinetic 454 | 26 98 15 50 . . . 16 137 46 . . . 4 . . . . . 12 . 26 24 Thermal 127 | . 3 . 32 . . . . . . . . . . . . . 12 7 20 24 18 11 Explosive 10 | . . . . . . . . 1 . . . . . . . . . 2 1 . 2 4 Electromagnetic 14 | . . . . . . . . 14 . . . . . . . . . . . . . . Robot Hit Streak 14 | 5 12 3 14 . . . 4 14 10 . . . 2 . . . 8 1 3 5 5 3 Robot Miss Streak 4 | 3 3 4 3 . . . 4 3 4 . . . 1 . . . 1 1 1 . 2 2 Penetration Max 1 | . . . . . . . 1 1 . . . . . . . . . . 1 . . . Secondary Targets 3 | . 2 1 . . . . . . . . . . . . . . . . . . . . Max Gunslinging Chain 1 | . 1 1 . . . . . . . . . . . . . . . . . . . . Shots Hit Robots 322 | 14 63 8 50 . . . 8 96 31 . . . 2 . . . 10 2 8 3 21 6 Core Hits 179 | 6 23 4 21 . . . 4 68 10 . . . 2 . . . 2 6 11 1 10 11 Critical Kills 4 | . . . . . . . . 1 . . . . . . . . 1 . 2 . . . Critical Parts Destroyed . | . . . . . . . . . . . . . . . . . . . . . . . Critical Strikes 5 | . . . . . . . . 1 1 . . . . . . . 1 . 2 . . . Meltdown 3 | . . . . . . . . . . . . . . . . . 1 . 2 . . . Destroy 2 | . . . . . . . . 1 1 . . . . . . . . . . . . . Melee Attacks 34 | . 1 . . . . . . 7 . . . . 4 12 3 . . . 1 . 6 . Impact . | . . . . . . . . . . . . . . . . . . . . . . . Slashing 27 | . 1 . . . . . . 7 . . . . 4 12 3 . . . . . . . Piercing . | . . . . . . . . . . . . . . . . . . . . . . . Entropic 1 | . . . . . . . . . . . . . . . . . . . 1 . . . Sneak Attacks 6 | . . . . . . . . . . . . . . . . . . . . . 6 . Combat Hostiles . | . . . . . . . . . . . . . . . . . . . . . . . Follow-up Attacks . | . . . . . . . . . . . . . . . . . . . . . . . Damage Inflicted 8956 | 157 778 111 735 . . . 174 2720 522 . . . 41 . . . 347 553 638 118 1219 843 Guns 3709 | 157 778 111 403 . . . 174 1437 489 . . . 41 . . . . . 119 . . . Cannons 1843 | . . . 332 . . . . . . . . . . . . . 346 37 147 118 590 273 Explosions 3287 | . . . . . . . . 1276 . . . . . . . . . 516 296 . 629 570 Melee 76 | . . . . . . . . . . . . . . . . . . . 76 . . . Ramming 41 | . . . . . . . . 7 33 . . . . . . . 1 . . . . . Kinetic 4369 | 157 778 111 403 . . . 174 1437 489 . . . 41 . . . . . 119 . 430 230 Thermal 1237 | . . . 332 . . . . 54 . . . . . . . . 346 37 147 118 160 43 Explosive 2157 | . . . . . . . . 146 . . . . . . . . . 516 296 . 629 570 Electromagnetic 1076 | . . . . . . . . 1076 . . . . . . . . . . . . . . Impact . | . . . . . . . . . . . . . . . . . . . . . . . Slashing . | . . . . . . . . . . . . . . . . . . . . . . . Piercing . | . . . . . . . . . . . . . . . . . . . . . . . Entropic 76 | . . . . . . . . . . . . . . . . . . . 76 . . . Highest Corruption 5 | . . . 2 2 2 2 . . . . . . . . . . 3 3 . . . 5 Average Corruption 2 | . . . 2 2 2 2 . . . . . . . . . . 3 3 . . . 5 Corruption Purged . | . . . . . . . . . . . . . . . . . . . . . . . Corruption Blocked . | . . . . . . . . . . . . . . . . . . . . . . . Effects 20 | . . . 6 1 6 . . . . . . . . . . . . 5 . . . 2 Message Errors 3 | . . . 1 . 1 . . . . . . . . . . . . . . . . 1 Matter Fused 6 | . . . 1 1 3 . . . . . . . . . . . . 1 . . . . Heat Flow Errors 3 | . . . 2 . . . . . . . . . . . . . . . . . . 1 Energy Discharges 2 | . . . . . . . . . . . . . . . . . . 2 . . . . Parts Fused 1 | . . . . . 1 . . . . . . . . . . . . . . . . . Data Loss (major) 4 | . . . 2 . 1 . . . . . . . . . . . . 1 . . . . Misfires 1 | . . . . . . . . . . . . . . . . . . 1 . . . . Overload Shots . | . . . . . . . . . . . . . . . . . . . . . . . Overflow Damage 170 | . . . . . . . . 7 . . . . . . . . . 8 1 . 21 133 Projectiles 24 | . . . . . . . . . . . . . . . . . . . . . 20 4 Explosions 146 | . . . . . . . . 7 . . . . . . . . . 8 1 . 1 129 Melee . | . . . . . . . . . . . . . . . . . . . . . . . Knockbacks 6 | . . . . . . . . . . . . . . . . . . . . . 4 2 Impact . | . . . . . . . . . . . . . . . . . . . . . . . Kinetic 6 | . . . . . . . . . . . . . . . . . . . . . 4 2 Secondary . | . . . . . . . . . . . . . . . . . . . . . . . Self-Inflicted Damage 131 | . . . . . . . . 45 . . . . . . . . . . . . . 86 Shots 5 | . . . . . . . . 4 . . . . . . . . . . . . . 1 Rammed 7 | . . . . . . . . 1 4 . . . . . . . 2 . . . . . Targets Rammed 7 | . . . . . . . . 1 4 . . . . . . . 2 . . . . . Kicked . | . . . . . . . . . . . . . . . . . . . . . . . Crushed . | . . . . . . . . . . . . . . . . . . . . . . . Highest Temperature 338 | . 60 . 278 . . . 39 42 191 . . . . . . . 299 122 286 242 144 338 Average Temperature 73 | . 16 . 99 . . . 14 11 57 . . . . . . . 113 53 102 84 51 93 Received Heat Transfer 873 | . 180 . 279 . . . 18 234 81 . . . 9 . . . 27 9 . . 36 . Siege Activations . | . . . . . . . . . . . . . . . . . . . . . . . Martial Activations . | . . . . . . . . . . . . . . . . . . . . . . . Shielding Activations . | . . . . . . . . . . . . . . . . . . . . . . . Robots Disrupted . | . . . . . . . . . . . . . . . . . . . . . . . Combat Hostiles . | . . . . . . . . . . . . . . . . . . . . . . . Robots Corrupted . | . . . . . . . . . . . . . . . . . . . . . . . Combat Hostiles . | . . . . . . . . . . . . . . . . . . . . . . . Parts Fried 6 | . . . . . . . . 5 . . . . . . . . 1 . . . . . Impact Corruptions . | . . . . . . . . . . . . . . . . . . . . . . . Robots Melted 3 | . . . . . . . . . . . . . . . . . 1 . 2 . . . Combat Hostiles 1 | . . . . . . . . . . . . . . . . . 1 . . . . . Parts Melted 7 | . . . 1 . . . . 2 . . . . . . . . . . 3 . 1 . Heat Transferred 1493 | . . . 703 . . . . 50 . . . . . . . . 259 37 148 111 148 37 Parts Sabotaged . | . . . . . . . . . . . . . . . . . . . . . . . Parts Stolen . | . . . . . . . . . . . . . . . . . . . . . . . Parts Stripped . | . . . . . . . . . . . . . . . . . . . . . . . Power Chain Reactions 4 | . . . . . . . . 4 . . . . . . . . . . . . . . Alert | -11 -10 -10 -9 -9 -9 -8 -8 -8 -8 -8 -6 -6 -6 -5 -5 -5 -5 -4 -4 -3 -2 -1 ------- Run | Yrd Mat Min Mat Min Exi Min Mat Sto Rec Scr Fac Was Fac Fac Upp Upp War Pro Fac Res Res Acc Maximum Alert Level 1 | . . . . . . . . 1 . . . . . . . . . . . . . . Low Security (%) 93 | 100 100 100 100 100 . 100 100 62 100 . 100 100 100 100 . . . . 100 100 100 100 Level 1 6 | . . . . . . . . 37 . . . . . . . . . . . . . . Level 2 . | . . . . . . . . . . . . . . . . . . . . . . . Level 3 . | . . . . . . . . . . . . . . . . . . . . . . . Level 4 . | . . . . . . . . . . . . . . . . . . . . . . . Level 5 . | . . . . . . . . . . . . . . . . . . . . . . . High Security . | . . . . . . . . . . . . . . . . . . . . . . . Max Security . | . . . . . . . . . . . . . . . . . . . . . . . Peak Influence 398 | 10 156 75 73 7 . . 27 398 148 . . 19 156 66 . . . . 166 96 114 171 Initial 148 | . . 25 3 7 . . . . 148 . . . . 66 . . . . 37 75 . 16 Average 57 | 1 69 43 19 3 . . 3 185 19 . . . 27 44 . . . . 53 26 30 32 Influence Increases 3685 | 25 282 75 277 . . . 32 972 175 . . 33 245 86 30 . 124 110 300 102 424 393 Destroy 0b10 Robot/C 1720 | . 180 60 200 . . . 20 560 140 . . . 100 . . . 80 80 120 . 80 100 Destroy 0b10 Robot/NC 210 | 25 10 5 5 . . . 10 85 . . . . 5 . . . . 5 15 5 20 20 Destroy Leader 330 | . 44 10 62 . . . 2 120 . . . . 22 . . . . 10 22 2 24 12 Allied During Kill 64 | . . . . . . . . 27 . . . . 23 . . . 14 . . . . . Successful Hack 160 | . . . 8 . . . . 10 5 . . . 7 6 . . . . 13 42 . 69 Disable Machine 255 | . . . . . . . . 105 15 . . . 30 30 . . . . 15 15 15 30 Destroy Structure 481 | . 3 . 2 . . . . 35 . . . 33 13 20 . . . . 40 38 165 132 Partial Spotted 45 | . . . . . . . . . . . . . . . . . . . 30 . 15 . Lose Combat Pursuer 420 | . 45 . . . . . . 30 15 . . . 45 30 30 . 30 15 45 . 105 30 Influence Decreases 3515 | 25 215 132 268 19 . . 32 589 558 . . 33 109 190 62 . 124 50 217 245 396 251 Entered New Map 482 | . . 42 7 12 . . . . 235 . . . . 70 13 . . . 23 68 . 12 Time Decay 2679 | 25 215 80 194 7 . . 32 559 323 . . 11 48 110 49 . 40 50 194 167 356 219 Lost Part 147 | . . 10 67 . . . . 10 . . . . . . . . 10 . . 10 20 20 Lost Ally 207 | . . . . . . . . 20 . . . 22 61 10 . . 74 . . . 20 . Squads Dispatched 24 | . 2 . 2 . . . . 4 . . . . 1 2 . . . . 3 2 3 5 Investigation 7 | . 1 . 2 . . . . . . . . . 1 . . . . . . . 2 1 Extermination 6 | . . . . . . . . . . . . . . . . . . . 2 2 . 2 Reinforcement 9 | . 1 . . . . . . 2 . . . . . 2 . . . . 1 . 1 2 Assault 2 | . . . . . . . . 2 . . . . . . . . . . . . . . Garrison . | . . . . . . . . . . . . . . . . . . . . . . . Intercept . | . . . . . . . . . . . . . . . . . . . . . . . Searches Triggered . | . . . . . . . . . . . . . . . . . . . . . . . Construction Impeded . | . . . . . . . . . . . . . . . . . . . . . . . Haulers Reinforced . | . . . . . . . . . . . . . . . . . . . . . . . Active Scanning Responses . | . . . . . . . . . . . . . . . . . . . . . . . Cargo Convoy Interrupts . | . . . . . . . . . . . . . . . . . . . . . . . Stealth | -11 -10 -10 -9 -9 -9 -8 -8 -8 -8 -8 -6 -6 -6 -5 -5 -5 -5 -4 -4 -3 -2 -1 --------- Run | Yrd Mat Min Mat Min Exi Min Mat Sto Rec Scr Fac Was Fac Fac Upp Upp War Pro Fac Res Res Acc Distress Signals 18 | . 2 . 2 . . . . 3 . . . . . 1 . . . . 1 . 8 1 Communications Jammed 258 | . . . . . . . . . . . . . . . . . 242 1 . . 12 3 Distress Signals 257 | . . . . . . . . . . . . . . . . . 242 . . . 12 3 Times Spotted 173 | . 17 3 16 . . . 2 35 6 . . 7 4 6 3 . 22 6 13 1 14 18 Peak Tracking Total 9 | . 6 3 7 . . . 1 5 2 . . 6 4 3 2 . 9 4 8 1 5 3 Tactical Retreats 22 | . 1 . . . . . . 2 1 . . 1 2 1 1 . 2 1 2 . 6 2 Traps | -11 -10 -10 -9 -9 -9 -8 -8 -8 -8 -8 -6 -6 -6 -5 -5 -5 -5 -4 -4 -3 -2 -1 ------- Run | Yrd Mat Min Mat Min Exi Min Mat Sto Rec Scr Fac Was Fac Fac Upp Upp War Pro Fac Res Res Acc Traps Triggered 5 | . 1 . 1 . . . . 1 . . 1 . . 1 . . . . . . . . Indirectly . | . . . . . . . . . . . . . . . . . . . . . . . Trap Hack Attempts . | . . . . . . . . . . . . . . . . . . . . . . . Triggered . | . . . . . . . . . . . . . . . . . . . . . . . Disarmed . | . . . . . . . . . . . . . . . . . . . . . . . Reprogrammed . | . . . . . . . . . . . . . . . . . . . . . . . Reused 1 | . . . . . . . . . . . . . . . 1 . . . . . . . Traps Extracted . | . . . . . . . . . . . . . . . . . . . . . . . Installed 2 | . . . . . . . . . . . . . . . 2 . . . . . . . Triggered 1 | . . . . . . . . . . . . . . . 1 . . . . . . . Most Traps Carried 1 | . . . . . . . . . . . . . . . 1 . . . . . . . Machines | -11 -10 -10 -9 -9 -9 -8 -8 -8 -8 -8 -6 -6 -6 -5 -5 -5 -5 -4 -4 -3 -2 -1 ---------- Run | Yrd Mat Min Mat Min Exi Min Mat Sto Rec Scr Fac Was Fac Fac Upp Upp War Pro Fac Res Res Acc Machines Disabled 18 | . . . . . . . . 7 1 . . . 2 2 . . . 1 1 1 1 2 Max in Single Turn 1 | . . . . . . . . 1 1 . . . 1 1 . . . 1 1 1 1 1 Garrison Access 5 | . . . . . . . . . . . . . . 1 . . . . 1 . 3 . Machines Repaired . | . . . . . . . . . . . . . . . . . . . . . . . Machines Dismantled . | . . . . . . . . . . . . . . . . . . . . . . . Machines Sabotaged . | . . . . . . . . . . . . . . . . . . . . . . . Overloaded Fab Kills . | . . . . . . . . . . . . . . . . . . . . . . . Hacking | -11 -10 -10 -9 -9 -9 -8 -8 -8 -8 -8 -6 -6 -6 -5 -5 -5 -5 -4 -4 -3 -2 -1 --------- Run | Yrd Mat Min Mat Min Exi Min Mat Sto Rec Scr Fac Was Fac Fac Upp Upp War Pro Fac Res Res Acc Machines Accessed 63 | . 1 1 4 . 2 . . 7 7 . 1 . 4 4 1 1 3 1 9 6 4 7 Terminals 31 | . 1 . 3 . . . . 6 2 . 1 . 3 2 . . . . 2 5 . 6 Fabricators 1 | . . . . . . . . . . . . . . . . . . . 1 . . . Repair Stations 3 | . . . . . . . . 1 . . . . 1 . . . . . 1 . . . Recycling Units 9 | . . . 1 . . . . . 3 . . . . 1 . . . . 2 1 1 . Scanalyzers 2 | . . . . . . . . . . . . . . . . . . . 1 . 1 . Garrison Access 6 | . . . . . . . . . . . . . . 1 . . . . 2 . 2 1 Total Hacks 147 | . 3 1 8 . 2 . . 15 33 . 1 . 8 14 1 1 4 1 17 13 9 16 Successful 71 | . . 1 2 . 2 . . 4 31 . . . 3 4 1 1 4 1 5 2 2 8 Failed 76 | . 3 . 6 . . . . 11 2 . 1 . 5 10 . . . . 12 11 7 8 Catastrophic 16 | . . . 3 . . . . 2 . . 1 . 2 . . . . . 3 3 2 . Database Lockouts . | . . . . . . . . . . . . . . . . . . . . . . . Manual 39 | . . . 4 . 1 . . 7 . . 1 . 2 8 . . . . 2 5 . 9 Terminals 67 | . 3 . 7 . . . . 13 3 . 1 . 7 8 . . . . 2 9 . 14 Fabricators 2 | . . . . . . . . . . . . . . . . . . . 2 . . . Repair Stations 6 | . . . . . . . . 2 . . . . 1 . . . . . 3 . . . Recycling Units 22 | . . . 1 . . . . . 6 . . . . 2 . . . . 5 4 4 . Scanalyzers 3 | . . . . . . . . . . . . . . . . . . . 2 . 1 . Garrison Access 13 | . . . . . . . . . . . . . . 4 . . . . 3 . 4 2 Terminal Hacks 49 | . . 1 1 . 2 . . 2 27 . . . 2 . 1 1 4 1 . 2 . 5 Record 29 | . . . . . 1 . . . 24 . . . . . . . 2 1 . 1 . . Robot Analysis 2 | . . . . . . . . . 1 . . . . . . . . . . . . 1 Prototype ID Bank 2 | . . . . . . . . . 1 . . . . . . . . . . 1 . . Open Door 8 | . . 1 . . . . . 2 . . . . . . 1 1 2 . . . . 1 Level Access Points 1 | . . . . . . . . . . . . . . . . . . . . . . 1 Branch Access Points 2 | . . . 1 . . . . . . . . . 1 . . . . . . . . . Alert Level 1 | . . . . . . . . . 1 . . . . . . . . . . . . . Patrol Status 1 | . . . . . . . . . . . . . . . . . . . . . . 1 Recall Extermination 1 | . . . . . . . . . . . . . . . . . . . . . . 1 Hauler Manifests 1 | . . . . . . . . . . . . . 1 . . . . . . . . . Proto ID Catalog 1 | . . . . . 1 . . . . . . . . . . . . . . . . . Fabricator Hacks 1 | . . . . . . . . . . . . . . . . . . . 1 . . . Network Status 1 | . . . . . . . . . . . . . . . . . . . 1 . . . Repair Station Hacks 3 | . . . . . . . . 2 . . . . . . . . . . 1 . . . Scan Component 2 | . . . . . . . . 1 . . . . . . . . . . 1 . . . Repair 1 | . . . . . . . . 1 . . . . . . . . . . . . . . Recycling Unit Hacks 7 | . . . 1 . . . . . 4 . . . . 1 . . . . . . 1 . Report Inventory 2 | . . . 1 . . . . . 1 . . . . . . . . . . . . . Retrieve Components 5 | . . . . . . . . . 3 . . . . 1 . . . . . . 1 . Scanalyzer . | . . . . . . . . . . . . . . . . . . . . . . . Garrison Access Hacks 3 | . . . . . . . . . . . . . . 1 . . . . 1 . 1 . Seal Access 3 | . . . . . . . . . . . . . . 1 . . . . 1 . 1 . Unauthorized Hacks 8 | . . . . . . . . . . . . . 1 2 . . . . 2 . . 3 Terminals 7 | . . . . . . . . . . . . . 1 2 . . . . 1 . . 3 Assimilate 2 | . . . . . . . . . . . . . . 1 . . . . . . . 1 Botnet 5 | . . . . . . . . . . . . . 1 1 . . . . 1 . . 2 Fabricators 1 | . . . . . . . . . . . . . . . . . . . 1 . . . Fabnet 1 | . . . . . . . . . . . . . . . . . . . 1 . . . Repair Stations . | . . . . . . . . . . . . . . . . . . . . . . . Recycling Units . | . . . . . . . . . . . . . . . . . . . . . . . Scanalyzers . | . . . . . . . . . . . . . . . . . . . . . . . Garrison Access . | . . . . . . . . . . . . . . . . . . . . . . . Data Cores Recovered 1 | . . . . . . . . . . . . . . . . . . . . . . 1 Used . | . . . . . . . . . . . . . . . . . . . . . . . Hacking Detections 38 | . 1 . 2 . . . . 5 2 . 1 . 4 3 . . . . 5 6 3 6 Full Trace Events 4 | . . . 1 . . . . . . . . . . . . . . . . . 2 1 Feedback Events . | . . . . . . . . . . . . . . . . . . . . . . . Feedback Blocked . | . . . . . . . . . . . . . . . . . . . . . . . Robot Schematics Acquired . | . . . . . . . . . . . . . . . . . . . . . . . Robots Built . | . . . . . . . . . . . . . . . . . . . . . . . Authchips . | . . . . . . . . . . . . . . . . . . . . . . . Time . | . . . . . . . . . . . . . . . . . . . . . . . Total Robot Build Rating . | . . . . . . . . . . . . . . . . . . . . . . . Part Schematics Acquired . | . . . . . . . . . . . . . . . . . . . . . . . Parts Built . | . . . . . . . . . . . . . . . . . . . . . . . Authchips . | . . . . . . . . . . . . . . . . . . . . . . . Time . | . . . . . . . . . . . . . . . . . . . . . . . Total Part Build Rating . | . . . . . . . . . . . . . . . . . . . . . . . Part Studies Acquired . | . . . . . . . . . . . . . . . . . . . . . . . Parts Repaired 1 | . . . . . . . . 1 . . . . . . . . . . . . . . Time 26 | . . . . . . . . 26 . . . . . . . . . . . . . . Parts Recycled . | . . . . . . . . . . . . . . . . . . . . . . . Recycled Matter . | . . . . . . . . . . . . . . . . . . . . . . . Retrieved Matter . | . . . . . . . . . . . . . . . . . . . . . . . Retrieved Components 6 | . . . . . . . . . 3 . . . . . . . . . . . 3 . Parts Scanalyzed . | . . . . . . . . . . . . . . . . . . . . . . . Part Schematics Acquired . | . . . . . . . . . . . . . . . . . . . . . . . Parts Damaged . | . . . . . . . . . . . . . . . . . . . . . . . Bothacking | -11 -10 -10 -9 -9 -9 -8 -8 -8 -8 -8 -6 -6 -6 -5 -5 -5 -5 -4 -4 -3 -2 -1 ------------ Run | Yrd Mat Min Mat Min Exi Min Mat Sto Rec Scr Fac Was Fac Fac Upp Upp War Pro Fac Res Res Acc Used RIF Installer . | . . . . . . . . . . . . . . . . . . . . . . . Robots Hacked 8 | . . . . . . . . . . . . . . . . . . . . . 8 . Non-combat . | . . . . . . . . . . . . . . . . . . . . . . . Combat 8 | . . . . . . . . . . . . . . . . . . . . . 8 . Robot Hacks Applied 6 | . . . . . . . . . . . . . . . . . . . . . 6 . parse_system 6 | . . . . . . . . . . . . . . . . . . . . . 6 . Relay Couplers Released 4 | . . . . . . . . . . . . . . . . . . . . . 4 . Machine Destruction 4 | . . . . . . . . . . . . . . . . . . . . . 4 . Fabnet Peak Effective % 3 | . . . . . . . . . . . . . . . . . . . . 3 1 . Autooverrided 2 | . . . . . . . . . . . . . . . . . . . . . 2 . Robots Rewired 5 | . . . . . . . . . . . . . . . . . 5 . . . . . Allies Hacked 1 | . . . . . . . . . . . . . . . . . 1 . . . . . Hacks Repelled . | . . . . . . . . . . . . . . . . . . . . . . . Allies | -11 -10 -10 -9 -9 -9 -8 -8 -8 -8 -8 -6 -6 -6 -5 -5 -5 -5 -4 -4 -3 -2 -1 -------- Run | Yrd Mat Min Mat Min Exi Min Mat Sto Rec Scr Fac Was Fac Fac Upp Upp War Pro Fac Res Res Acc Total Allies 30 | . . . . . . . . 2 . . . 19 . 1 . . 5 . . . 2 1 Largest Group 19 | . . . . . . . . 2 . . . 19 7 2 1 . 5 . . . 1 1 Highest-Rated Group 702 | . . . . . . . . 62 . . . 702 267 37 27 . 244 . . . 69 45 Highest-Rated Ally 69 | . . . . . . . . 31 . . . 50 50 27 27 . 64 . . . 69 45 Total Orders . | . . . . . . . . . . . . . . . . . . . . . . . Ally Attacks 177 | . . . . . . . . 25 . . . 92 25 . . . 26 . . . 9 . Total Damage 7837 | . . . . . . . . 382 . . . 5260 779 . . . 1073 . . . 343 . Kills 28 | . . . . . . . . 3 . . . 15 5 . . . 3 . . . 2 . Allies Corrupted 1 | . . . . . . . . . . . . . . . . . 1 . . . . . Allies Melted 1 | . . . . . . . . . . . . . . . . . . . . . 1 . Intel | -11 -10 -10 -9 -9 -9 -8 -8 -8 -8 -8 -6 -6 -6 -5 -5 -5 -5 -4 -4 -3 -2 -1 ------- Run | Yrd Mat Min Mat Min Exi Min Mat Sto Rec Scr Fac Was Fac Fac Upp Upp War Pro Fac Res Res Acc Active Infowar (turns) 6318 | 51 618 174 404 . . . . . . . . 252 194 235 289 114 616 234 492 561 1469 615 Optics 1154 | . . . . . . . . . . . . . . 139 289 114 612 . . . . . Sensors 2623 | . . . . . . . . . . . . . . . . . . . . 539 1469 615 Terrain 1217 | 51 618 174 374 . . . . . . . . . . . . . . . . . . . Structural 5071 | . . . . . . . . . . . . 252 194 235 289 114 616 234 492 561 1469 615 Seismic 403 | . . . 403 . . . . . . . . . . . . . . . . . . . Machine Analysis 723 | . . . . . . . . . . . . . . . . . . . . . 108 615 Cloaking 3061 | . . . . . . . . . . . . . . . 49 . . . 368 561 1468 615 Jamming 4133 | . . . . . . . . . . . . . . . 35 114 616 234 492 558 1469 615 Robot Analysis Total 2 | . . . . . . . . . 1 . . . . . . . . . . . . 1 Derelict Logs Recovered 2 | . . . . . . . . . . . . . . . . 1 . 1 . . . . Drone Launches 1 | . . . . . . . . . . . . 1 . . . . . . . . . . Drone Recoveries . | . . . . . . . . . . . . . . . . . . . . . . . Exploration | -11 -10 -10 -9 -9 -9 -8 -8 -8 -8 -8 -6 -6 -6 -5 -5 -5 -5 -4 -4 -3 -2 -1 ------------- Run | Yrd Mat Min Mat Min Exi Min Mat Sto Rec Scr Fac Was Fac Fac Upp Upp War Pro Fac Res Res Acc Turns Passed 13770 | 150 618 174 807 41 599 53 271 1840 2000 2000 104 294 194 235 289 114 616 234 492 561 1469 615 Spaces Moved 12718 | 63 228 81 279 15 247 23 93 599 819 865 46 396 426 500 469 247 1058 485 853 1149 2809 968 Core 4 | 4 . . . . . . . . . . . . . . . . . . . . . . Treads 3072 | 59 204 . 87 15 247 23 93 599 819 865 46 15 . . . . . . . . . . Legs . | . . . . . . . . . . . . . . . . . . . . . . . Wheels 297 | . 24 81 192 . . . . . . . . . . . . . . . . . . . Hover . | . . . . . . . . . . . . . . . . . . . . . . . Flight 9345 | . . . . . . . . . . . . 381 426 500 469 247 1058 485 853 1149 2809 968 Fastest Speed 35 | 50 160 175 130 240 240 240 232 231 231 231 231 35 35 35 42 42 42 42 37 37 44 39 Average Speed 89 | 153 181 175 194 240 240 240 236 231 231 231 231 45 35 37 42 42 42 42 37 39 44 43 Slowest Speed 320 | 160 320 175 320 240 240 240 240 235 231 231 231 231 35 42 42 42 50 42 42 132 44 150 Overloaded Moves . | . . . . . . . . . . . . . . . . . . . . . . . Propulsion Burnouts . | . . . . . . . . . . . . . . . . . . . . . . . Robots Hopped 33 | . . . . . . . . . . . . 2 2 4 . 1 5 . 2 . 6 11 Potential Cave-ins . | . . . . . . . . . . . . . . . . . . . . . . . Cave-ins Triggered . | . . . . . . . . . . . . . . . . . . . . . . . Exploration Rate (%) 42 | 5 39 14 28 7 61 16 6 83 99 58 2 94 17 15 57 48 94 74 24 25 81 25 Regions Visited 22 Branch Regions 11 Pre-discovered Areas 1 | . . . . . 1 . . . . . . . . . . . . . . . . . Known Exits Taken 10 | . . . 1 . . . . . . . . . 1 1 1 1 1 1 1 1 1 . Unknown Exits Taken 10 | 1 1 1 . 1 1 1 1 1 1 1 . . . . . . . . . . . . Scrap Searched 8 | . . . . . . . . . . 3 . . . . 3 1 . 1 . . . . Spaces Dug 102 | . 1 . . . . . . 6 . . . . 3 10 3 . 1 2 14 20 24 18 Terrain Destroyed 264 | . 1 . . . . . 1 35 3 . . . 3 10 3 . 2 25 22 20 69 70 Melee 23 | . 1 . . . . . . 6 . . . . 3 10 3 . . . . . . . Projectile 110 | . . . . . . . 1 4 3 . . . . . . . 2 5 20 20 27 28 AOE 130 | . . . . . . . . 24 . . . . . . . . . 20 2 . 42 42 Terrain Rammed . | . . . . . . . . . . . . . . . . . . . . . . . Walls Destroyed . | . . . . . . . . . . . . . . . . . . . . . . . Machines Disabled . | . . . . . . . . . . . . . . . . . . . . . . . Actions | -11 -10 -10 -9 -9 -9 -8 -8 -8 -8 -8 -6 -6 -6 -5 -5 -5 -5 -4 -4 -3 -2 -1 --------- Run | Yrd Mat Min Mat Min Exi Min Mat Sto Rec Scr Fac Was Fac Fac Upp Upp War Pro Fac Res Res Acc Total 14427 | 90 336 98 460 21 258 22 130 898 879 868 46 508 462 526 557 255 1196 503 987 1229 2993 1105 Wait 916 | . 31 . 98 5 1 . 4 154 28 . . 93 11 11 73 8 84 4 76 33 101 101 Move 12633 | 62 227 80 278 14 246 22 92 598 818 864 46 392 421 491 468 244 1047 484 848 1148 2798 945 Hop 30 | . . . . . . . . . . . . 1 2 4 . 1 5 . 2 . 4 11 Pick Up 86 | 8 7 7 13 1 3 . 4 12 3 . . 4 7 1 3 . 3 1 3 2 4 . Fast Attach 71 | 7 . . 5 . . . 6 4 . 2 . 3 2 2 2 1 2 3 9 8 11 4 Attach 27 | . . 1 9 . . . 3 1 . . . 4 1 . 1 . 2 1 . . 2 2 Detach 7 | . . . . . . . 2 . . . . . . . 1 . . . 2 1 . 1 Swap 66 | . 10 2 10 . . . 3 15 . . . 2 2 1 . . 1 2 5 4 6 3 Drop 121 | . 8 . 6 1 8 . 8 20 3 2 . 9 10 4 4 1 4 . 8 9 15 1 Fire 393 | 13 52 8 41 . . . 8 86 23 . . . 2 . . . 12 8 33 24 46 37 Melee 34 | . 1 . . . . . . 7 . . . . 4 12 3 . . . 1 . 6 . Ram 2 | . . . . . . . . . . . . . . . . . 2 . . . . . Kick . | . . . . . . . . . . . . . . . . . . . . . . . Crush 5 | . . . . . . . . 1 4 . . . . . . . . . . . . . Escape Stasis . | . . . . . . . . . . . . . . . . . . . . . . . Rewire 34 | . . . . . . . . . . . . . . . . . 34 . . . . . Trap 2 | . . . . . . . . . . . . . . . 2 . . . . . . . Miscellaneous . | . . . . . . . . . . . . . . . . . . . . . . . Route ------- -11/Scrapyard -10/Materials (discovered 2 exits: *Min / [*Sub]) -10/Mines (discovered 2 exits: *Mat / [*Sub]) -9/Materials (discovered 2 exits: *Min x2) -9/Mines -9/Exiles -8/Mines -8/Materials -8/Storage (discovered 2 exits: [*Fac] / *Rec) -8/Recycling (discovered 2 exits: *Fac / *Scr) -8/Scraptown -6/Factory -6/Waste -6/Factory (discovered 5 exits: *Fac / Low x2 / Ext x2) -5/Factory -5/Upper Caves -5/Upper Caves (discovered 2 exits: *Fac / *War) -5/Warlord -4/Proximity Caves -4/Factory (discovered 4 exits: *Res x3 / *Upp) -3/Research -2/Research (discovered 2 exits: *Acc / *Tes) -1/Access To Epsilon Eridani History --------- Turn | Location | Event 8 | -11/Scrapyard | Discovered new exit (range 15) 151 | -11/Scrapyard | Entered Materials 230 | -10/Materials | Discovered new exit (range 6) 304 | -10/Materials | Build established: Mutant 560 | -10/Materials | Discovered new exit (range 12) 769 | -10/Materials | Entered Mines 832 | -10/Mines | Met a Derelict bent on vengeance 839 | -10/Mines | Discovered new exit (range 12) 873 | -10/Mines | Found the Drone Emporium 881 | -10/Mines | Found Prototype Device 903 | -10/Mines | Discovered new exit (range 3) 943 | -10/Mines | Entered Materials 943 | -9/Materials | Evolved 2 slots: Propulsion x1, Utility x1 1416 | -9/Materials | Lost 6 parts (2p1n2u1w) 1565 | -9/Materials | Identified exit to Mines 1750 | -9/Materials | Entered Mines 1757 | -9/Mines | Received a Rocket Launcher from a helpful Derelict 1779 | -9/Mines | Deemed a non-threat by the Exiles lab entrance 1781 | -9/Mines | Discovered new exit (range 5) 1791 | -9/Mines | Entered Exiles 1920 | -9/Exiles | Met 8R-AWN 1936 | -9/Exiles | Build established: Scavenger-Mutant 1961 | -9/Exiles | Met EX-HEX 2035 | -9/Exiles | Met EX-BIN 2076 | -9/Exiles | Aligned with FarCom system 2079 | -9/Exiles | Given EX-Vault access code 2134 | -9/Exiles | Opened EX-Vault 2154 | -9/Exiles | Found Flying Fortress v7 2203 | -9/Exiles | Warned to stay clear of 0b10 Research branches 2282 | -9/Exiles | Met EX-DEC 2294 | -9/Exiles | Learned location of Zion (-6) 2363 | -9/Exiles | Discovered new exit (range 14) 2390 | -9/Exiles | Left Exiles lab with Flying Fortress v7 2390 | -9/Exiles | Entered Mines 2429 | -8/Mines | Discovered new exit (range 6) 2443 | -8/Mines | Entered Materials 2443 | -8/Materials | Evolved 2 slots: Propulsion x1, Utility x1 2606 | -8/Materials | Discovered new exit (range 6) 2714 | -8/Materials | Entered Storage 3114 | -8/Storage | Repaired Core Shielding 3244 | -8/Storage | Build established: Mutant 3781 | -8/Storage | Met a pair of Derelict thieves 4059 | -8/Storage | Discovered new exit (range 15) 4547 | -8/Storage | Used back door to open Recycling access 4547 | -8/Storage | Discovered new exit (range 4) 4554 | -8/Storage | Entered Recycling 5156 | -8/Recycling | Discovered new exit (range 7) 6494 | -8/Recycling | Scanned before Scraplab entrance 6526 | -8/Recycling | Entered Scraplab 6549 | -8/Recycling | Discovered new exit (range 3) 6554 | -8/Recycling | Entered Scraptown 6638 | -8/Scraptown | Heard Great Nut preacher, LISTEN AND RECITE! 6841 | -8/Scraptown | Turned away by UFD registrar 6873 | -8/Scraptown | Visited TADAMA 6906 | -8/Scraptown | Visited Fellowship of the Rings 6947 | -8/Scraptown | Visited Spacefarers 6989 | -8/Scraptown | Visited Assassins FH 7007 | -8/Scraptown | Visited Cyclists 7134 | -8/Scraptown | Visited Comm Corps 7213 | -8/Scraptown | Visited Junk Repository 7427 | -8/Scraptown | Discovered new exit (range 11) 8554 | -8/Scraptown | Entered Factory 8554 | -6/Factory | Evolved 4 slots: Propulsion x2, Utility x2 8658 | -6/Factory | Sucked down chute 8658 | -6/Factory | Entered Waste 8690 | -6/Waste | Spotted C-40 Crusher 8702 | -6/Waste | Identified Splice Drone Bay 8723 | -6/Waste | Spotted C-40 Crusher 8750 | -6/Waste | Spotted C-40 Crusher 8757 | -6/Waste | Spotted C-40 Crusher 8766 | -6/Waste | Spotted C-40 Crusher 8768 | -6/Waste | Spotted C-40 Crusher 8803 | -6/Waste | Discovered new exit (range 15) 8815 | -6/Waste | Warlord forces began an assault 8877 | -6/Waste | Allies destroyed C-40 Crusher 8947 | -6/Waste | Found Adv. Powered Armor 8952 | -6/Waste | Entered Factory 8952 | -6/Factory | Accompanied by 7 allies 9025 | -6/Factory | Identified exit to Lower Caves 9025 | -6/Factory | Identified exit to Extension 9124 | -6/Factory | Discovered new exit (range 16) 9129 | -6/Factory | Identified exit to Factory 9131 | -6/Factory | Lost 3 allies 9146 | -6/Factory | Entered another Factory area 9146 | -5/Factory | Accompanied by 1 ally 9146 | -5/Factory | Evolved 2 slots: Utility x2 9365 | -5/Factory | Allied Derelicts emerged from ambush trap array 9372 | -5/Factory | Discovered new exit (range 4) 9374 | -5/Factory | Identified exit to Upper Caves 9381 | -5/Factory | Entered Upper Caves 9381 | -5/Upper Caves | Accompanied by 1 ally 9604 | -5/Upper Caves | Encountered a Warlord checkpoint 9665 | -5/Upper Caves | Discovered new exit (range 6) 9670 | -5/Upper Caves | Identified exit to Upper Caves 9670 | -5/Upper Caves | Entered another Upper Caves area 9679 | -5/Upper Caves | Discovered new exit (range 3) 9680 | -5/Upper Caves | Identified exit to Factory 9738 | -5/Upper Caves | Learned location of 1 exit from Factory 9778 | -5/Upper Caves | Discovered new exit (range 14) 9783 | -5/Upper Caves | Identified exit to Warlord 9784 | -5/Upper Caves | Entered Warlord 9908 | -5/Warlord | Met Warlord 9931 | -5/Warlord | Warlord's base attacked by MAIN.C 9942 | -5/Warlord | Build established: Infiltrator-Mutant 10018 | -5/Warlord | Found Prototype Piercing Weapon 10018 | -5/Warlord | Identified Vortex Lance 10070 | -5/Warlord | Found Prototype Special Weapon 10070 | -5/Warlord | Identified RU-N14's Throwing Claymores v3 10072 | -5/Warlord | Found RU-N14's Throwing Claymores v3 10154 | -5/Warlord | Opened side exit 10266 | -5/Warlord | Spotted Executioner 10281 | -5/Warlord | Warlord forces counterattacked 10304 | -5/Warlord | Lost 3 allies 10342 | -5/Warlord | Spotted Executioner 10376 | -5/Warlord | Discovered new exit (range 13) 10377 | -5/Warlord | Spotted Striker 10380 | -5/Warlord | Identified exit to Proximity Caves 10400 | -5/Warlord | Entered Proximity Caves 10408 | -4/Proximity Caves | Lost 8 allies 10427 | -4/Proximity Caves | Lost 4 parts (1n3u) 10552 | -4/Proximity Caves | Found Alien Artifact 10634 | -4/Proximity Caves | Entered Factory 10634 | -4/Factory | Evolved 2 slots: Power x1, Utility x1 10635 | -4/Factory | Identified exit to Research 10663 | -4/Factory | Discovered new exit (range 10) 10674 | -4/Factory | Identified exit to Upper Caves 10981 | -4/Factory | Discovered exit to Research (range 13) 11124 | -4/Factory | Discovered exit to Research (range 8) 11126 | -4/Factory | Entered Research 11126 | -3/Research | Evolved 2 slots: Utility x2 11309 | -3/Research | Found Prototype Launcher 11309 | -3/Research | Identified Adv. Micro-nuke Launcher 11370 | -3/Research | Spotted B-86 Titan 11564 | -3/Research | Discovered new exit (range 4) 11565 | -3/Research | Identified exit to Research 11687 | -3/Research | Entered another Research area 11687 | -2/Research | Warlord forces began assault on 0b10 11687 | -2/Research | Evolved 2 slots: Utility x2 11713 | -2/Research | Build established: Hacker-Ninja 11797 | -2/Research | Research machine network offline 11913 | -2/Research | Met up with Warlord 11936 | -2/Research | Discovered new exit (range 14) 11942 | -2/Research | Identified exit to Testing 12151 | -2/Research | Spotted B-90 Cyclops 12169 | -2/Research | Lost 5 allies 12283 | -2/Research | Borebot progress halted 12370 | -2/Research | Borebot progress halted 12375 | -2/Research | Lost 3 allies 12483 | -2/Research | Borebot progress halted 12495 | -2/Research | Spotted Striker 12613 | -2/Research | Met DD-05H 12689 | -2/Research | Warlord invited to help at Command 12689 | -2/Research | Given Cave Seal Controls access code 12887 | -2/Research | Spotted Striker 12944 | -2/Research | Destroyed Striker 13153 | -2/Research | Discovered new exit (range 5) 13154 | -2/Research | Identified exit to Access 13156 | -2/Research | Entered Access 13156 | -1/Access | Evolved 2 slots: Propulsion x1, Utility x1 13206 | -1/Access | Identified exit to Surface 13756 | -1/Access | Identified Dimensional Node Initializer 13756 | -1/Access | Initialized slip node 13769 | -1/Access | Spotted B-99 Colossus 13771 | *** | Escaped! Last Messages --------------- 13743_ K-01 Serf collects debris. 13743_ Acquired 5 matter. 13743_ R-10 Processor collects Wheel. 13743_ Acquired 7 matter. 13743_ U-05 Engineer lays Concrete. 13745_ K-01 Serf collects debris. 13745_ U-05 Engineer lays Concrete. 13750_ Connecting with Terminal... >>Open(Door) Sealed Barrier opened. 13751_ The Access Shell folds into the floor. 13756_ Identified Dimensional Node Initializer. 13756_ Initializer activates and latches into the ground. 13762_ Sealed Heavy Doors breached. 13762_ Dimensional Slip Node implodes. 13764_ The unstable cave ceiling collapses. 13769_ SNZ: U LCX3#D